Cogmind - Beta 17.1 @@@ ROGUE MODE // 2026.09.05 @ 17:32:50 Player: Finn Result: Destroyed by S-27 Virus with Autogun Performance ------------- Evolutions (6) 3000 Regions Visited (8) 1600 Robots Destroyed (23) 115 Value Destroyed (258) 258 Prototype IDs (2) 40 Alien Tech Used (0) 0 Bonus (0) 0 TOTAL SCORE: 5013 Bonus ------- None Cogmind --------- Core Integrity 0/1150 Matter 171/300 Energy 93/100 System Corruption 6% Temperature Cool (0) Movement Core (50) Location -4/Upper Caves Parts ------- > --- POWER (2) -------- (None) > --- PROPULSION (8) --- (None) > --- UTILITY (7) ------ (None) > --- WEAPON (2) ------- Makeshift Hammer > --- INVENTORY (5) ---- Improved Fusion Compressor Cesium-ion Thruster Peak State ------------ > --- POWER ------------ Micro Fission Core > --- PROPULSION ------- Wheel > --- UTILITY ---------- Experimental Heat Sink Experimental Cooling System Advanced Sensor Array Improved Core Shielding Advanced Shield Generator > --- WEAPON ----------- Advanced Datajack > --- INVENTORY -------- Improved Fusion Compressor Myomer Leg Cesium-ion Thruster Medium Laser Assault Rifle [Rating: 46] Favorites ----------- Power Ion Engine Engine Ion Engine Power Core Micro Fission Core Reactor Antimatter Reactor Propulsion Flight Unit Leg Myomer Leg Wheel Wheel Flight Unit Flight Unit Utility Small Storage Unit Device Experimental Heat Sink Storage Small Storage Unit Protection Improved Core Shielding Weapon Light Assault Rifle Energy Gun Beamcaster Ballistic Gun Light Assault Rifle Impact Weapon Makeshift Hammer Special Melee Weapon Advanced Datajack Build | -11 -10 -9 -8 -7 -6 -5 -4 -4 ------- Run | Yrd Mat Mat Mat Fac Fac Fac Fac Upp Slots Evolved 12 | . . 2 2 2 2 2 2 . Power 1 | . . . . . 1 . . . Propulsion 6 | . . 2 1 1 . 2 . . Utility 5 | . . . 1 1 1 . 2 . Weapon . | . . . . . . . . . Parts Attached 36 | 8 2 5 . 4 . 3 7 7 Power 4 | 2 . . . . . . 1 1 Engine 2 | 2 . . . . . . . . Core 1 | . . . . . . . 1 . Reactor 1 | . . . . . . . . 1 Propulsion 13 | 2 2 5 . 2 . . 2 . Treads . | . . . . . . . . . Leg 1 | . . . . . . . 1 . Wheel 3 | 2 . . . . . . 1 . Hover . | . . . . . . . . . Flight 9 | . 2 5 . 2 . . . . Utility 13 | 2 . . . 2 . 3 3 3 Device 9 | 1 . . . . . 2 3 3 Storage 1 | 1 . . . . . . . . Processor . | . . . . . . . . . Hackware . | . . . . . . . . . Protection 3 | . . . . 2 . 1 . . Artifact . | . . . . . . . . . Weapon 6 | 2 . . . . . . 1 3 Energy Gun 2 | . . . . . . . . 2 Energy Cannon . | . . . . . . . . . Ballistic Gun 2 | 2 . . . . . . . . Ballistic Cannon . | . . . . . . . . . Launcher . | . . . . . . . . . Special Weapon . | . . . . . . . . . Impact Weapon 1 | . . . . . . . . 1 Slashing Weapon . | . . . . . . . . . Piercing Weapon . | . . . . . . . . . Special Melee Weapon 1 | . . . . . . . 1 . Unidentified Prototypes 2 | . . . . . . 1 1 . Parts Lost 30 | . 1 . 1 2 2 8 . 16 Power 4 | . . . . . . 2 . 2 Propulsion 9 | . . . 1 2 2 2 . 2 Utility 12 | . 1 . . . . 3 . 8 Weapon 5 | . . . . . . 1 . 4 Highest Loss Streak 9 | . 1 . 1 1 3 5 . 9 To Critical Strikes 1 | . . . . . . . . 1 Average Backups 4 | 4 4 5 4 4 3 3 3 4 Power . | . 1 1 1 1 . . . 1 Propulsion 1 | 2 2 3 2 1 1 1 1 1 Utility . | . . . . . . . . . Weapon 1 | 1 1 1 1 1 2 2 2 1 Tool/Special . | . . . . . . . . . Unused Backups 4 | . 1 2 . . . . . 1 Power 1 | . . . . . . . . 1 Propulsion 3 | . 1 2 . . . . . . Utility . | . . . . . . . . . Weapon . | . . . . . . . . . Tool/Special . | . . . . . . . . . Average Slot Usage (%) 48 | . 99 68 70 68 59 43 31 18 Engine 5 | . 14 11 9 7 10 7 . . Wheel 3 | . 24 . . . . . 4 . Flight 14 | . 3 35 43 38 28 13 2 . Device 6 | . 14 . . . . 5 12 9 Storage 1 | . 13 . . . . . . . Protection 6 | . . . . 13 13 10 5 3 Ballistic Gun 7 | . 28 22 18 7 6 2 . . Peak Build Rating 46 | 7 7 7 8 18 16 27 46 46 Average Rating 14 | 5 6 6 7 14 14 19 31 21 On Entrance 12 | . 7 5 7 7 12 14 15 46 Avg Prop Armor Cover (%) 3 | . . . . 2 1 . 7 . Naked Turns 61 | . . . . . . . . 61 Heaviest Build 27 | 14 14 6 6 17 20 27 15 27 Greatest Support 25 | 20 20 16 20 20 20 15 10 25 Greatest Overweight (x) 3 | 1 1 . . 1 1 1 1 3 Average Overweight (x) . | . . . . . . . . . Largest Inventory Capacity 8 | 8 8 5 5 5 5 5 5 5 Average Capacity 6 | 7 7 5 5 5 5 5 5 5 Most Carried 8 | 6 8 5 5 5 4 4 5 5 Average Carried 4 | 4 4 5 4 4 3 3 3 4 Final Capacity 8 | 8 5 5 5 5 5 5 5 5 Final Carried 5 | 4 5 5 5 5 3 3 5 2 Class Distribution -------------------- 83% | Mutant 16% | Scavenger-Sprinter Dominant Class ---------------- Mutant | -10/Materials Scavenger-Sprinter | -9/Materials Scavenger-Sprinter | -8/Materials Scavenger-Sprinter | -7/Factory Mutant | -6/Factory Mutant | -5/Factory Mutant | -4/Factory Mutant | -4/Upper Caves Resources | -11 -10 -9 -8 -7 -6 -5 -4 -4 ----------- Run | Yrd Mat Mat Mat Fac Fac Fac Fac Upp Matter Collected 693 | 484 47 . . . . . . 162 Remotely . | . . . . . . . . . Salvage Created 549 | 334 47 110 . . . . . 58 Parts 48 | 29 6 10 . . . . . 3 Haulers Intercepted . | . . . . . . . . . Recyclers Shooed . | . . . . . . . . . Parts Field Recycled . | . . . . . . . . . Retrieved Matter . | . . . . . . . . . Parts Self-Destructed 3 | . . . . . . . . 3 Prevented . | . . . . . . . . . Parts Restored . | . . . . . . . . . Kills | -11 -10 -9 -8 -7 -6 -5 -4 -4 ------- Run | Yrd Mat Mat Mat Fac Fac Fac Fac Upp Combat Hostiles Destroyed 9 | . 3 5 . . . . . 1 Guns 9 | . 3 5 . . . . . 1 Classes Destroyed 6 | 3 1 1 . . . . . 1 Worker 4 | 4 . . . . . . . . Tunneler 9 | 9 . . . . . . . . Recycler 1 | 1 . . . . . . . . Swarmer 7 | . 3 4 . . . . . . Sentry 1 | . . 1 . . . . . . Programmer 1 | . . . . . . . . 1 Best Kill Streak 4 | 3 3 4 . . . . . 1 Combat Bots Only 4 | . 3 4 . . . . . 1 Max Kills in Single Turn 1 | 1 1 1 . . . . . 1 Gunslinging . | . . . . . . . . . Exploded . | . . . . . . . . . Melee . | . . . . . . . . . Uniques/NPCs Destroyed . | . . . . . . . . . Combat | -11 -10 -9 -8 -7 -6 -5 -4 -4 -------- Run | Yrd Mat Mat Mat Fac Fac Fac Fac Upp Hostile Shots Fired 387 | . 17 31 6 37 45 23 . 228 Missed 145 | . 4 14 3 19 19 6 . 80 Hits 242 | . 13 17 3 18 26 17 . 148 Projectile 242 | . 13 17 3 18 26 17 . 148 Critical Strikes 10 | . 1 . . 1 . 2 . 6 Actively Blocked 1 | . . . . . . . . 1 Damage Taken 3527 | . 107 173 43 233 183 391 . 2397 Core 1296 | . 28 47 8 36 16 . . 1161 Absorbed by Shields 172 | . . . . 27 . 87 . 58 Redirected to Shielding 105 | . . . . . . . . 105 Ignored by Resistances 43 | . . . . . . . . 43 Core Remaining (%) 95 | 100 88 88 98 94 98 100 . . Volleys Fired 91 | 54 9 14 1 1 . . . 12 Largest 2 | 2 2 2 2 1 . . . 2 Hottest 75 | 40 40 40 40 20 . . . 75 Shots Fired 160 | 96 18 28 2 1 . . . 15 Gun 160 | 96 18 28 2 1 . . . 15 Cannon . | . . . . . . . . . Launcher . | . . . . . . . . . Special . | . . . . . . . . . Kinetic 148 | 96 18 28 2 1 . . . 3 Thermal 12 | . . . . . . . . 12 Explosive . | . . . . . . . . . Electromagnetic . | . . . . . . . . . Robot Hit Streak 9 | 8 9 9 3 . . . . 3 Robot Miss Streak 4 | 3 3 2 1 . . . . 4 Penetration Max . | . . . . . . . . . Secondary Targets 1 | . 1 . . . . . . . Max Gunslinging Chain 1 | . 1 . . . . . . . Shots Hit Robots 97 | 57 12 17 1 . . . . 10 Core Hits 39 | 21 5 8 1 . . . . 4 Critical Kills . | . . . . . . . . . Critical Parts Destroyed . | . . . . . . . . . Critical Strikes 2 | . . . . . . . . 2 Burn 2 | . . . . . . . . 2 Melee Attacks 6 | . . . . . . . . 6 Impact 6 | . . . . . . . . 6 Slashing . | . . . . . . . . . Piercing . | . . . . . . . . . Sneak Attacks . | . . . . . . . . . Combat Hostiles . | . . . . . . . . . Follow-up Attacks . | . . . . . . . . . Damage Inflicted 1249 | 626 123 174 14 . . . 1 311 Guns 1112 | 626 123 174 14 . . . . 175 Cannons . | . . . . . . . . . Explosions . | . . . . . . . . . Melee 136 | . . . . . . . . 136 Ramming 1 | . . . . . . . 1 . Kinetic 954 | 626 123 174 14 . . . . 17 Thermal 158 | . . . . . . . . 158 Explosive . | . . . . . . . . . Electromagnetic . | . . . . . . . . . Impact 136 | . . . . . . . . 136 Slashing . | . . . . . . . . . Piercing . | . . . . . . . . . Highest Corruption 6 | . . . . . . 1 . 6 Average Corruption 3 | . . . . . . 1 . 4 Corruption Purged . | . . . . . . . . . Corruption Blocked . | . . . . . . . . . Effects 8 | . . . . . . 1 . 7 Message Errors 2 | . . . . . . . . 2 Matter Fused 2 | . . . . . . 1 . 1 Heat Flow Errors 1 | . . . . . . . . 1 Energy Discharges 2 | . . . . . . . . 2 Data Loss (minor) 1 | . . . . . . . . 1 Overload Shots . | . . . . . . . . . Overflow Damage 17 | . . . . . . . . 17 Projectiles . | . . . . . . . . . Explosions . | . . . . . . . . . Melee 17 | . . . . . . . . 17 Knockbacks 1 | . . . . . . . . 1 Impact 1 | . . . . . . . . 1 Kinetic . | . . . . . . . . . Secondary . | . . . . . . . . . Self-Inflicted Damage . | . . . . . . . . . Shots . | . . . . . . . . . Rammed 1 | . . . . . . . 1 . Targets Rammed 1 | . . . . . . . 1 . Kicked . | . . . . . . . . . Crushed . | . . . . . . . . . Highest Temperature 129 | . 15 2 8 33 10 3 . 129 Average Temperature 14 | . 6 1 5 12 10 3 . 28 Received Heat Transfer 340 | . 27 27 18 147 48 73 . . Siege Activations . | . . . . . . . . . Martial Activations . | . . . . . . . . . Shielding Activations . | . . . . . . . . . Robots Disrupted . | . . . . . . . . . Combat Hostiles . | . . . . . . . . . Robots Corrupted . | . . . . . . . . . Combat Hostiles . | . . . . . . . . . Parts Fried . | . . . . . . . . . Impact Corruptions 1 | . . . . . . . . 1 Robots Melted . | . . . . . . . . . Combat Hostiles . | . . . . . . . . . Parts Melted . | . . . . . . . . . Heat Transferred 444 | . . . . . . . . 444 Parts Sabotaged . | . . . . . . . . . Parts Stolen . | . . . . . . . . . Parts Stripped . | . . . . . . . . . Power Chain Reactions . | . . . . . . . . . Alert | -11 -10 -9 -8 -7 -6 -5 -4 -4 ------- Run | Yrd Mat Mat Mat Fac Fac Fac Fac Upp Maximum Alert Level . | . . . . . . . . . Low Security (%) 100 | 100 100 100 100 100 100 100 100 . Level 1 . | . . . . . . . . . Level 2 . | . . . . . . . . . Level 3 . | . . . . . . . . . Level 4 . | . . . . . . . . . Level 5 . | . . . . . . . . . High Security . | . . . . . . . . . Max Security . | . . . . . . . . . Peak Influence 130 | 10 60 107 80 130 64 17 7 . Initial 49 | . . 12 40 31 49 16 7 . Average 19 | 1 13 69 44 87 45 2 . . Influence Increases 646 | 70 70 135 60 189 15 42 . 65 Destroy 0b10 Robot/C 180 | . 60 100 . . . . . 20 Destroy 0b10 Robot/NC 70 | 70 . . . . . . . . Destroy Leader 30 | . 10 20 . . . . . . Successful Hack 36 | . . . . 24 . 12 . . Partial Spotted 75 | . . 15 . 45 15 . . . Lose Combat Pursuer 255 | . . . 60 120 . 30 . 45 Influence Decreases 641 | 70 40 68 87 159 81 59 17 60 Entered New Map 193 | . . 18 57 39 51 18 10 . Time Decay 358 | 70 30 50 20 100 10 31 7 40 Lost Part 70 | . 10 . 10 20 20 10 . . Lost Ally 20 | . . . . . . . . 20 Squads Dispatched 8 | . . . 2 3 . . 3 . Investigation 3 | . . . . 1 . . 2 . Extermination . | . . . . . . . . . Reinforcement 5 | . . . 2 2 . . 1 . Assault . | . . . . . . . . . Garrison . | . . . . . . . . . Intercept . | . . . . . . . . . Searches Triggered . | . . . . . . . . . Construction Impeded . | . . . . . . . . . Haulers Reinforced . | . . . . . . . . . Active Scanning Responses . | . . . . . . . . . Cargo Convoy Interrupts . | . . . . . . . . . Stealth | -11 -10 -9 -8 -7 -6 -5 -4 -4 --------- Run | Yrd Mat Mat Mat Fac Fac Fac Fac Upp Distress Signals 1 | . . . . . . . 1 . Communications Jammed . | . . . . . . . . . Distress Signals . | . . . . . . . . . Times Spotted 59 | . 7 10 12 13 2 2 1 12 Peak Tracking Total 8 | . 4 7 8 6 2 2 2 6 Tactical Retreats 9 | . . . 1 4 . 2 . 2 Traps | -11 -10 -9 -8 -7 -6 -5 -4 -4 ------- Run | Yrd Mat Mat Mat Fac Fac Fac Fac Upp Traps Triggered 2 | . . . . 1 . 1 . . Indirectly . | . . . . . . . . . Trap Hack Attempts . | . . . . . . . . . Triggered . | . . . . . . . . . Disarmed . | . . . . . . . . . Reprogrammed . | . . . . . . . . . Reused . | . . . . . . . . . Traps Extracted . | . . . . . . . . . Installed . | . . . . . . . . . Triggered . | . . . . . . . . . Machines | -11 -10 -9 -8 -7 -6 -5 -4 -4 ---------- Run | Yrd Mat Mat Mat Fac Fac Fac Fac Upp Machines Disabled . | . . . . . . . . . Max in Single Turn . | . . . . . . . . . Machines Repaired . | . . . . . . . . . Machines Dismantled . | . . . . . . . . . Machines Sabotaged . | . . . . . . . . . Overloaded Fab Kills . | . . . . . . . . . Hacking | -11 -10 -9 -8 -7 -6 -5 -4 -4 --------- Run | Yrd Mat Mat Mat Fac Fac Fac Fac Upp Machines Accessed 10 | . . . 1 2 . 3 3 1 Terminals 5 | . . . . 1 . 3 1 . Fabricators . | . . . . . . . . . Repair Stations . | . . . . . . . . . Recycling Units 2 | . . . 1 . . . 1 . Scanalyzers 1 | . . . . 1 . . . . Garrison Access 1 | . . . . . . . 1 . Total Hacks 17 | . . . 2 4 . 4 6 1 Successful 6 | . . . 1 1 . 3 . 1 Failed 11 | . . . 1 3 . 1 6 . Catastrophic 2 | . . . . . . 1 1 . Database Lockouts . | . . . . . . . . . Manual . | . . . . . . . . . Terminals 8 | . . . . 1 . 4 3 . Fabricators . | . . . . . . . . . Repair Stations . | . . . . . . . . . Recycling Units 3 | . . . 2 . . . 1 . Scanalyzers 3 | . . . . 3 . . . . Garrison Access 2 | . . . . . . . 2 . Terminal Hacks 4 | . . . . . . 3 . 1 Record 3 | . . . . . . 3 . . Open Door 1 | . . . . . . . . 1 Fabricator Hacks . | . . . . . . . . . Repair Station Hacks . | . . . . . . . . . Recycling Unit Hacks 1 | . . . 1 . . . . . Retrieve Components 1 | . . . 1 . . . . . Scanalyzer 1 | . . . . 1 . . . . Retrieve Study 1 | . . . . 1 . . . . Garrison Access Hacks . | . . . . . . . . . Unauthorized Hacks . | . . . . . . . . . Terminals . | . . . . . . . . . Fabricators . | . . . . . . . . . Repair Stations . | . . . . . . . . . Recycling Units . | . . . . . . . . . Scanalyzers . | . . . . . . . . . Garrison Access . | . . . . . . . . . Data Cores Recovered . | . . . . . . . . . Used . | . . . . . . . . . Hacking Detections 9 | . . . 1 2 . 3 3 . Full Trace Events 3 | . . . . 1 . . 2 . Feedback Events . | . . . . . . . . . Feedback Blocked . | . . . . . . . . . Robot Schematics Acquired . | . . . . . . . . . Robots Built . | . . . . . . . . . Authchips . | . . . . . . . . . Time . | . . . . . . . . . Total Robot Build Rating . | . . . . . . . . . Part Schematics Acquired . | . . . . . . . . . Parts Built . | . . . . . . . . . Authchips . | . . . . . . . . . Time . | . . . . . . . . . Total Part Build Rating . | . . . . . . . . . Part Studies Acquired 1 | . . . . 1 . . . . Parts Repaired . | . . . . . . . . . Time . | . . . . . . . . . Parts Recycled . | . . . . . . . . . Recycled Matter . | . . . . . . . . . Retrieved Matter . | . . . . . . . . . Retrieved Components 3 | . . . 3 . . . . . Parts Scanalyzed . | . . . . . . . . . Part Schematics Acquired . | . . . . . . . . . Parts Damaged . | . . . . . . . . . Bothacking | -11 -10 -9 -8 -7 -6 -5 -4 -4 ------------ Run | Yrd Mat Mat Mat Fac Fac Fac Fac Upp Used RIF Installer . | . . . . . . . . . Robots Hacked . | . . . . . . . . . Non-combat . | . . . . . . . . . Combat . | . . . . . . . . . Robot Hacks Applied . | . . . . . . . . . Relay Couplers Released . | . . . . . . . . . Fabnet Peak Effective % . | . . . . . . . . . Robots Rewired . | . . . . . . . . . Allies Hacked . | . . . . . . . . . Hacks Repelled . | . . . . . . . . . Allies | -11 -10 -9 -8 -7 -6 -5 -4 -4 -------- Run | Yrd Mat Mat Mat Fac Fac Fac Fac Upp Total Allies . | . . . . . . . . . Largest Group . | . . . . . . . . . Highest-Rated Group . | . . . . . . . . . Highest-Rated Ally . | . . . . . . . . . Total Orders . | . . . . . . . . . Ally Attacks . | . . . . . . . . . Total Damage . | . . . . . . . . . Kills . | . . . . . . . . . Allies Corrupted . | . . . . . . . . . Allies Melted . | . . . . . . . . . Intel | -11 -10 -9 -8 -7 -6 -5 -4 -4 ------- Run | Yrd Mat Mat Mat Fac Fac Fac Fac Upp Active Infowar (turns) 615 | 226 144 . . . . . 166 79 Sensors 245 | . . . . . . . 166 79 Seismic 370 | 226 144 . . . . . . . Robot Analysis Total . | . . . . . . . . . Derelict Logs Recovered . | . . . . . . . . . Drone Launches 3 | . . . . . . . . 3 Drone Recoveries 1 | . . . . . . . . 1 Exploration | -11 -10 -9 -8 -7 -6 -5 -4 -4 ------------- Run | Yrd Mat Mat Mat Fac Fac Fac Fac Upp Turns Passed 2008 | 607 146 118 42 206 29 295 246 319 Spaces Moved 2001 | 222 136 141 128 326 55 341 307 345 Core 307 | 12 . . . . . . . 295 Treads . | . . . . . . . . . Legs 13 | . . . . . . . . 13 Wheels 611 | 210 108 . . . . . 256 37 Hover . | . . . . . . . . . Flight 1070 | . 28 141 128 326 55 341 51 . Fastest Speed 28 | 50 37 31 28 29 29 32 35 50 Average Speed 64 | 91 72 31 28 29 50 84 73 76 Slowest Speed 200 | 100 117 37 31 114 114 115 95 200 Overloaded Moves . | . . . . . . . . . Propulsion Burnouts . | . . . . . . . . . Robots Hopped 8 | . . 1 . 7 . . . . Potential Cave-ins . | . . . . . . . . . Cave-ins Triggered . | . . . . . . . . . Exploration Rate (%) 16 | 5 26 15 20 13 2 10 7 49 Regions Visited 8 Branch Regions 1 Pre-discovered Areas . | . . . . . . . . . Known Exits Taken . | . . . . . . . . . Unknown Exits Taken 8 | 1 1 1 1 1 1 1 1 . Scrap Searched 3 | . . . . . . . . 3 Spaces Dug . | . . . . . . . . . Terrain Destroyed . | . . . . . . . . . Melee . | . . . . . . . . . Projectile . | . . . . . . . . . AOE . | . . . . . . . . . Terrain Rammed . | . . . . . . . . . Walls Destroyed . | . . . . . . . . . Machines Disabled . | . . . . . . . . . Actions | -11 -10 -9 -8 -7 -6 -5 -4 -4 --------- Run | Yrd Mat Mat Mat Fac Fac Fac Fac Upp Total 2558 | 538 167 187 130 428 56 348 326 378 Wait 381 | 244 12 26 . 87 . 2 5 5 Move 1979 | 221 135 138 127 313 54 340 306 345 Hop 6 | . . 1 . 5 . . . . Pick Up 26 | 11 4 . 1 1 . 3 5 1 Fast Attach 11 | . . 2 . 2 . . 2 5 Attach 26 | 7 . . 1 4 2 3 5 4 Detach 5 | . . . . 3 . . 2 . Swap 8 | 1 3 3 . 1 . . . . Drop 7 | . 4 3 . . . . . . Fire 91 | 54 9 14 1 1 . . . 12 Melee 6 | . . . . . . . . 6 Ram 1 | . . . . . . . 1 . Kick . | . . . . . . . . . Crush . | . . . . . . . . . Escape Stasis 11 | . . . . 11 . . . . Rewire . | . . . . . . . . . Trap . | . . . . . . . . . Miscellaneous . | . . . . . . . . . Route ------- -11/Scrapyard -10/Materials -9/Materials (discovered 2 exits: *Mat / [*Min]) -8/Materials -7/Factory -6/Factory -5/Factory -4/Factory -4/Upper Caves History --------- Turn | Location | Event 12 | -11/Scrapyard | Discovered new exit (range 15) 608 | -11/Scrapyard | Entered Materials 609 | -10/Materials | Build established: Mutant 749 | -10/Materials | Discovered new exit (range 16) 754 | -10/Materials | Entered another Materials area 754 | -9/Materials | Evolved 2 slots: Propulsion x2 814 | -9/Materials | Discovered new exit (range 16) 867 | -9/Materials | Discovered new exit (range 15) 872 | -9/Materials | Entered another Materials area 872 | -8/Materials | Evolved 2 slots: Propulsion x1, Utility x1 906 | -8/Materials | Discovered new exit (range 16) 914 | -8/Materials | Entered Factory 914 | -7/Factory | Evolved 2 slots: Propulsion x1, Utility x1 1090 | -7/Factory | Build established: Scavenger-Sprinter 1105 | -7/Factory | Discovered new exit (range 15) 1120 | -7/Factory | Entered another Factory area 1120 | -6/Factory | Evolved 2 slots: Power x1, Utility x1 1134 | -6/Factory | Discovered new exit (range 15) 1149 | -6/Factory | Entered another Factory area 1149 | -5/Factory | Evolved 2 slots: Propulsion x2 1169 | -5/Factory | Lost 3 parts (3n) 1394 | -5/Factory | Lost 5 parts (2p2n1u) 1422 | -5/Factory | Build established: Mutant 1439 | -5/Factory | Discovered new exit (range 16) 1444 | -5/Factory | Entered another Factory area 1444 | -4/Factory | Evolved 2 slots: Utility x2 1473 | -4/Factory | Spotted B-86 Titan 1621 | -4/Factory | Discovered new exit (range 6) 1690 | -4/Factory | Entered Upper Caves 1707 | -4/Upper Caves | Ambushed by research squad 1768 | -4/Upper Caves | Lost 4 parts (1p1n1u1w) 1950 | -4/Upper Caves | Spotted B-86 Titan 1957 | -4/Upper Caves | Core integrity fell below 50% 1967 | -4/Upper Caves | Lost 9 parts (1p1n4u3w) 1999 | -4/Upper Caves | Core integrity fell below 20% 2009 | -4/Upper Caves | Destroyed by S-27 Virus with Autogun Last Messages --------------- 01954_ Penetrated by Slug. 01956_ Slug penetrates Wall. 01962_ Penetrated by Slug. 01970_ System corrupted: Energy discharge (-30). 01988_ Searching scrap... 01988_ Found Adv. Shield Generator. 01988_ Found Mak. Power Source. 01988_ Found Melee Analysis Suite. 01988_ Found Adv. Signal Interpreter. 01988_ Found 67 Matter. 01990_ System corrupted: Matter fused (-7). 01993_ Connecting with WAR.Sys... 01993_ Current location identified: Upper Caves >>Open Door Sealed Heavy Doors opened. 01994_ Acquired Mak. Hammer. 01998_ S-27 Virus knocked back. 02000_ Destroyed Lgt. Nuclear Core. 02000_ S-27 Virus system corrupted by crushing effect. Map ----- +----------------------------------------------------+ | | | | | | | | | | | | | | | | | | | | | | | ?????????????????????????????????????????????????? | | ?????????????????????????????????????????????????? | | ?????????????????????????????????????????????????? | | ?????????????????????????????????????????????????? | | ?????????????????????????????????????????????????? | | ?????????????????????????????????????????????????? | | ?????????????????????????????????????????????????? | | ?????????????????????????????????????????????????? | | ?????????????????????????????????????????????????? | | ??????????????????????#######????????????????????? | | ??????????????????????#!! [[#????????????????????? | | ??????????????????????#!! [[#????????????????????? | | ??????????????????????#== //#????????????????????? | | ??????????????????????##= s##????????????????????? | | ???????????????????##??# @s#?????????????????????? | | ??????????????????## ### ss#?????????????????????? | | ??????????????????# # #X#?????????????????????? | | ???????????????????# ####?????????????????????? | | ??????????????###??## ##???????????????????????? | | ?????????????## ##?# ##???#??????????????????? | | ?????????????# ## #### ## #??????????????????? | | ?????????????# ### ## #???????????????? | | ?????????????## !! #???????????????? | | ?????????????## *%! #???????????????? | | ?????????????# #### #####???????????????? | | ?????????????# ##### #####???????????????????? | | ????????????## ## #???????????????????????? | | ??????????### # ##??????????????????????? | | ?????????## # # #?????????????????????? | | ????????## # ## # ##????????????????????? | | ????????# # #????????????????????? | | ????????#### ##????????????????????? | | ???????????#### # ## ??????????????????? | | ?????????????## # #? ? ???????????????????? | | ???????????### ## # # ????????????????????? | | ??????????## ## # ? ???????????????????? | | ?????????## ## ###??##??????????????????? | | ????????## #### ####????????????????????????? | | ????????# # ##?? #????????????????????????????? | +----------------------------------------------------+ Best States ------------- Heat Dissipation 81 Energy Generation 21 Energy Capacity 325 Matter Stores 300 Matter Capacity 300 Sight Range 16 Robot Scan Range 16 Terrain Scan Density 10 Armor Coverage 375 Resistance: EM 25 Core Shielding 30 Phase Shifting 5 Evasion (%) 64 Item Schematics ----------------- None Robot Schematics ------------------ None Fabricated ------------ Nothing Repaired ---------- Nothing Studied --------- Flight Unit | -7/Factory | Hacked Alien Tech Used ----------------- None Achievements -------------- None Challenges ------------ None Game ------ Seed WaveBarrageWell Manual? 0 Play Time 00:21:00 Cumulative 35.6 hours Start 2026.09.05 @ 17:10:45 End 2026.09.05 @ 17:32:50 Sessions 1 Manual Loads 0 Difficulty Rogue Special Mode None Game No. 87 Rogue 70 Adventurer 15 Explorer 2 Win Type - Total 0 Types 0/0/0/0/0/0/0/0/0/0 Lore% 26 Gallery% 27 Achievement% 22 Wizard Run 0 Options --------- Layout 1 ASCII 0 Keyboard 0 Movement Mouse Keybinds 0 Fullscreen 1 Font 24/Smallcaps Map View 50x35 Zoom Use 0% Tactical HUD 1 Map Filters NONE Filters NONE Steam 1 RUN: 66bb417f-1aed-48c6-b61d-4bf7095ae723